Cogmind - Beta 11 X9 @@@ ROGUE MODE // 2021.12.25 @ 01:49:54 // Winter2021/Sauler Player: biogoob Result: Self-destructed Performance ------------- Evolutions (2) 1000 Regions Visited (5) 1000 Robots Destroyed (36) 180 Value Destroyed (992) 992 Prototype IDs (0) 0 Alien Tech Used (0) 0 Bonus (0) 0 TOTAL SCORE: 3172 Bonus ------- None Cogmind --------- Core Integrity 454/550 Matter 300/300 Energy 72/300 System Corruption 0% Temperature Warm (173) Movement Rolling (120) Ox2 Location -8/Materials Parts ------- > --- POWER (1) -------- (None) > --- PROPULSION (4) --- Light Treads Light Treads Aluminum Leg Armored Wheel > --- UTILITY (4) ------ Large Storage Unit Compact Battery Improved Terrain Scan Processor Improved Targeting Computer > --- WEAPON (2) ------- Particle Gun EM Pulse Cannon > --- INVENTORY (15) --- Ion Engine Light Ion Engine Wheel Wheel Compact Wheel Flight Unit Heat Sink Disposable Heat Sink Small Storage Unit Compact Matter Pod (150) Hacking Suite Medium Laser Assault Rifle Grenade Launcher Makeshift Hammer Peak State ------------ > --- POWER ------------ Light Nuclear Core > --- PROPULSION ------- Light Treads Light Treads Aluminum Leg Armored Wheel > --- UTILITY ---------- Large Storage Unit Compact Battery Improved Terrain Scan Processor Improved Targeting Computer > --- WEAPON ----------- Particle Gun EM Pulse Cannon > --- INVENTORY -------- Ion Engine Light Ion Engine Wheel Wheel Compact Wheel Flight Unit Heat Sink Disposable Heat Sink Small Storage Unit Compact Matter Pod Medium Laser Assault Rifle Grenade Launcher Makeshift Hammer [Rating: 24] Favorites ----------- Power Light Ion Engine Engine Light Ion Engine Power Core Light Nuclear Core Propulsion Aluminum Leg Treads Light Treads Leg Aluminum Leg Wheel Armored Wheel Utility Large Storage Unit Device Structural Scanner Storage Large Storage Unit Processor Improved Targeting Computer Weapon Grenade Launcher Energy Gun Medium Laser Energy Cannon EM Pulse Cannon Ballistic Gun Assault Rifle Launcher Grenade Launcher Build | -11 -10 -10 -10 -9 -8 ------- Run | Scr Mat Min Exi Min Mat Slots Evolved 4 | . . . . . 4 Power . | . . . . . . Propulsion 2 | . . . . . 2 Utility 2 | . . . . . 2 Weapon . | . . . . . . Parts Attached 28 | . 8 6 . 8 6 Power 4 | . . 1 . 3 . Engine 2 | . . 1 . 1 . Core 2 | . . . . 2 . Reactor . | . . . . . . Propulsion 9 | . 2 3 . 2 2 Treads 2 | . . . . . 2 Leg 6 | . 2 3 . 1 . Wheel 1 | . . . . 1 . Hover . | . . . . . . Flight . | . . . . . . Utility 5 | . 2 . . 1 2 Device 1 | . 1 . . . . Storage 2 | . 1 . . . 1 Processor 2 | . . . . 1 1 Hackware . | . . . . . . Protection . | . . . . . . Artifact . | . . . . . . Weapon 10 | . 4 2 . 2 2 Energy Gun 2 | . 1 . . . 1 Energy Cannon 1 | . . . . . 1 Ballistic Gun 2 | . 1 1 . . . Ballistic Cannon . | . . . . . . Launcher 5 | . 2 1 . 2 . Special Weapon . | . . . . . . Impact Weapon . | . . . . . . Slashing Weapon . | . . . . . . Piercing Weapon . | . . . . . . Special Melee Weapon . | . . . . . . Unidentified Prototypes . | . . . . . . Parts Lost 7 | . 1 4 . 1 1 Power 2 | . . 1 . . 1 Propulsion 2 | . 1 1 . . . Utility . | . . . . . . Weapon 3 | . . 2 . 1 . Highest Loss Streak 3 | . 1 3 . 1 1 Average Slot Usage (%) 90 | . 86 86 85 95 97 Engine 10 | . 14 13 14 7 . Core 2 | . . . . 6 8 Treads 1 | . . . . . 18 Leg 23 | . 27 27 28 19 9 Wheel 3 | . . . . 8 9 Device 7 | . 2 14 14 4 . Storage 14 | . 14 14 14 14 16 Processor 4 | . . . . 9 17 Energy Gun 3 | . 17 2 . . 4 Ballistic Gun 8 | . 4 . 14 14 1 Launcher 8 | . 5 13 . 9 4 Naked Turns . | . . . . . . Heaviest Build 35 | 13 31 31 26 30 35 Greatest Support 20 | 20 20 20 20 20 12 Greatest Overweight (x) 2 | . 2 2 1 2 2 Average Overweight (x) 1 | . . 1 1 1 2 Largest Inventory Capacity 15 | . 15 15 15 15 15 Average Capacity 14 | . 13 15 15 15 15 Most Carried 15 | . 13 15 15 15 15 Average Carried 13 | . 9 14 15 14 14 Final Capacity 15 | 8 15 15 15 15 15 Final Carried 15 | 6 13 15 15 15 15 Class Distribution -------------------- 100% | Mutant Dominant Class ---------------- Mutant | -10/Materials Mutant | -10/Mines Mutant | -10/Exiles Mutant | -9/Mines Mutant | -8/Materials Resources | -11 -10 -10 -10 -9 -8 ----------- Run | Scr Mat Min Exi Min Mat Matter Collected 807 | 169 209 176 . 178 75 Remotely . | . . . . . . Salvage Created 823 | . 292 157 . 132 242 Parts 49 | . 18 12 . 8 11 Haulers Intercepted . | . . . . . . Recyclers Shooed 1 | . . . . . 1 Parts Field Recycled . | . . . . . . Retrieved Matter . | . . . . . . Parts Self-Destructed . | . . . . . . Prevented . | . . . . . . Kills | -11 -10 -10 -10 -9 -8 ------- Run | Scr Mat Min Exi Min Mat Combat Hostiles Destroyed 30 | . 9 9 . 5 7 Guns 6 | . 4 . . . 2 Cannons 1 | . . . . . 1 AOE 23 | . 5 9 . 5 4 Classes Destroyed 7 | . 4 . . . 3 Worker 3 | . 1 2 . . . Builder 1 | . . . . . 1 Recycler 1 | . 1 . . . . Watcher 1 | . . . . . 1 Swarmer 10 | . 3 3 . . 4 Grunt 18 | . 6 6 . 5 1 Hunter 2 | . . . . . 2 Best Kill Streak 5 | . 5 4 . 3 4 Combat Bots Only 4 | . 4 3 . 3 4 Max Kills in Single Turn 3 | . 3 2 . 3 3 Gunslinging . | . . . . . . Exploded 3 | . 2 2 . 3 3 Melee . | . . . . . . Uniques/NPCs Destroyed . | . . . . . . Combat | -11 -10 -10 -10 -9 -8 -------- Run | Scr Mat Min Exi Min Mat Damage Taken 1206 | . 433 258 . 97 418 Core 242 | . 95 8 . 43 96 Absorbed by Shields . | . . . . . . Core Remaining (%) 70 | 100 . . . 41 . Volleys Fired 62 | . 27 16 . 4 15 Largest 2 | . 2 2 . 1 2 Hottest 128 | . 90 80 . 30 128 Shots Fired 101 | . 46 21 . 4 30 Gun 63 | . 42 8 . . 13 Cannon 15 | . . . . . 15 Launcher 23 | . 4 13 . 4 2 Special . | . . . . . . Kinetic 22 | . 21 1 . . . Thermal 41 | . 21 7 . . 13 Explosive 23 | . 4 13 . 4 2 Electromagnetic 15 | . . . . . 15 Robot Hit Streak 13 | . 7 7 . 4 13 Robot Miss Streak 2 | . 2 2 . 1 2 Penetration Max . | . . . . . . Secondary Targets . | . . . . . . Shots Hit Robots 76 | . 33 17 . 3 23 Core Hits 60 | . 19 17 . 12 12 Critical Kills . | . . . . . . Critical Parts Destroyed . | . . . . . . Critical Strikes 1 | . 1 . . . . Burn 1 | . 1 . . . . Melee Attacks . | . . . . . . Impact . | . . . . . . Slashing . | . . . . . . Piercing . | . . . . . . Sneak Attacks . | . . . . . . Combat Hostiles . | . . . . . . Follow-up Attacks . | . . . . . . Damage Inflicted 2470 | . 707 828 . 321 614 Guns 668 | . 399 77 . . 192 Cannons 303 | . . . . . 303 Explosions 1499 | . 308 751 . 321 119 Melee . | . . . . . . Ramming . | . . . . . . Kinetic 238 | . 225 13 . . . Thermal 452 | . 174 86 . . 192 Explosive 1477 | . 308 729 . 321 119 Electromagnetic 303 | . . . . . 303 Impact . | . . . . . . Slashing . | . . . . . . Piercing . | . . . . . . Highest Corruption . | . . . . . . Average Corruption . | . . . . . . Corruption Purged . | . . . . . . Overload Shots . | . . . . . . Overflow Damage 1 | . . . . . 1 Projectiles 1 | . . . . . 1 Explosions . | . . . . . . Melee . | . . . . . . Knockbacks . | . . . . . . Impact . | . . . . . . Kinetic . | . . . . . . Secondary . | . . . . . . Self-Inflicted Damage 168 | . 30 59 . 33 46 Shots 10 | . 1 5 . 2 2 Rammed . | . . . . . . Targets Rammed . | . . . . . . Kicked . | . . . . . . Crushed . | . . . . . . Highest Temperature 390 | . 216 56 . 28 390 Average Temperature 100 | . 78 21 . 17 166 Received Heat Transfer 414 | . 207 99 . 72 36 Effects 2 | . . . . . 2 Energy Bleed 1 | . . . . . 1 Damage (minor) 1 | . . . . . 1 Siege Activations . | . . . . . . Robots Corrupted . | . . . . . . Combat Hostiles . | . . . . . . Parts Fried 4 | . . . . . 4 Impact Corruptions . | . . . . . . Robots Melted . | . . . . . . Combat Hostiles . | . . . . . . Parts Melted 2 | . 1 . . . 1 Heat Transferred 1259 | . 580 235 . . 444 Parts Sabotaged . | . . . . . . Parts Stolen . | . . . . . . Parts Stripped . | . . . . . . Power Chain Reactions . | . . . . . . Missiles Intercepted . | . . . . . . Alert | -11 -10 -10 -10 -9 -8 ------- Run | Scr Mat Min Exi Min Mat Peak Influence 300 | . 130 300 . 100 249 Initial 40 | . . 40 . . 19 Average 73 | . 57 129 . 32 101 Maximum Alert Level 1 | . . 1 . . 1 Low Security (%) 92 | . 100 79 . 100 87 Level 1 7 | . . 20 . . 12 Level 2 . | . . . . . . Level 3 . | . . . . . . Level 4 . | . . . . . . Level 5 . | . . . . . . High Security . | . . . . . . Max Security . | . . . . . . Squads Dispatched 4 | . 3 . . . 1 Investigation 2 | . 1 . . . 1 Extermination . | . . . . . . Reinforcement 2 | . 2 . . . . Assault . | . . . . . . Garrison . | . . . . . . Intercept . | . . . . . . Construction Impeded . | . . . . . . Haulers Reinforced . | . . . . . . Active Scanning Responses . | . . . . . . Cargo Convoy Interrupts . | . . . . . . Stealth | -11 -10 -10 -10 -9 -8 --------- Run | Scr Mat Min Exi Min Mat Distress Signals 6 | . 2 . . 1 3 Communications Jammed . | . . . . . . Distress Signals . | . . . . . . Times Spotted 37 | . 14 8 . 5 10 Peak Tracking Total 4 | . 4 3 . 3 4 Tactical Retreats 2 | . 1 . . . 1 Traps | -11 -10 -10 -10 -9 -8 ------- Run | Scr Mat Min Exi Min Mat Traps Triggered 3 | . 2 . . . 1 Indirectly . | . . . . . . Trap Hack Attempts . | . . . . . . Triggered . | . . . . . . Disarmed . | . . . . . . Reprogrammed . | . . . . . . Reused . | . . . . . . Traps Extracted . | . . . . . . Installed . | . . . . . . Triggered . | . . . . . . Machines | -11 -10 -10 -10 -9 -8 ---------- Run | Scr Mat Min Exi Min Mat Machines Disabled 5 | . 1 3 . 1 . Max in Single Turn 2 | . 1 2 . 1 . Machines Sabotaged . | . . . . . . Garrisons Compromised . | . . . . . . Overloaded Fab Kills . | . . . . . . Hacking | -11 -10 -10 -10 -9 -8 --------- Run | Scr Mat Min Exi Min Mat Machines Accessed 4 | . 2 . 2 . . Terminals 1 | . 1 . . . . Fabricators . | . . . . . . Repair Stations . | . . . . . . Recycling Units 1 | . 1 . . . . Scanalyzers . | . . . . . . Garrison Access . | . . . . . . Total Hacks 5 | . 3 . 2 . . Successful 5 | . 3 . 2 . . Failed . | . . . . . . Catastrophic . | . . . . . . Database Lockouts . | . . . . . . Manual 2 | . 2 . . . . Terminals 2 | . 2 . . . . Fabricators . | . . . . . . Repair Stations . | . . . . . . Recycling Units 1 | . 1 . . . . Scanalyzers . | . . . . . . Garrison Access . | . . . . . . Terminal Hacks 3 | . 1 . 2 . . Record 2 | . . . 2 . . Recall Reinforcements 1 | . 1 . . . . Fabricator Hacks . | . . . . . . Repair Station Hacks . | . . . . . . Recycling Unit Hacks 1 | . 1 . . . . Report Inventory 1 | . 1 . . . . Scanalyzer . | . . . . . . Garrison Access Hacks . | . . . . . . Unauthorized Hacks 1 | . 1 . . . . Terminals 1 | . 1 . . . . Botnet 1 | . 1 . . . . Fabricators . | . . . . . . Repair Stations . | . . . . . . Recycling Units . | . . . . . . Scanalyzers . | . . . . . . Garrison Access . | . . . . . . Data Cores Recovered . | . . . . . . Used . | . . . . . . Hacking Detections 1 | . 1 . . . . Full Trace Events . | . . . . . . Feedback Events . | . . . . . . Feedback Blocked . | . . . . . . Robot Schematics Acquired . | . . . . . . Robots Built . | . . . . . . Authchips . | . . . . . . Time . | . . . . . . Total Robot Build Rating . | . . . . . . Part Schematics Acquired . | . . . . . . Parts Built . | . . . . . . Authchips . | . . . . . . Time . | . . . . . . Total Part Build Rating . | . . . . . . Parts Repaired . | . . . . . . Time . | . . . . . . Parts Recycled . | . . . . . . Recycled Matter . | . . . . . . Retrieved Matter . | . . . . . . Retrieved Components . | . . . . . . Parts Scanalyzed . | . . . . . . Part Schematics Acquired . | . . . . . . Parts Damaged . | . . . . . . Bothacking | -11 -10 -10 -10 -9 -8 ------------ Run | Scr Mat Min Exi Min Mat Used RIF Installer . | . . . . . . Robots Hacked . | . . . . . . Non-combat . | . . . . . . Combat . | . . . . . . Robot Hacks Applied . | . . . . . . Relay Couplers Released . | . . . . . . Fabnet Peak Effective % . | . . . . . . Robots Rewired . | . . . . . . Allies Hacked . | . . . . . . Hacks Repelled . | . . . . . . Allies | -11 -10 -10 -10 -9 -8 -------- Run | Scr Mat Min Exi Min Mat Total Allies 1 | . . . . 1 . Largest Group 1 | . . . . 1 . Highest-Rated Group 31 | . . . . 31 . Highest-Rated Ally 31 | . . . . 31 . Total Orders . | . . . . . . Ally Attacks 4 | . . . . 4 . Total Damage 64 | . . . . 64 . Kills 2 | . . . . 2 . Allies Corrupted . | . . . . . . Allies Melted 1 | . . . . 1 . Intel | -11 -10 -10 -10 -9 -8 ------- Run | Scr Mat Min Exi Min Mat Robot Analysis Total . | . . . . . . Derelict Logs Recovered 3 | . . 2 . 1 . Drone Launches . | . . . . . . Drone Recoveries . | . . . . . . Exploration | -11 -10 -10 -10 -9 -8 ------------- Run | Scr Mat Min Exi Min Mat Turns Passed 3286 | . 560 858 544 1113 211 Spaces Moved 1738 | 1 276 425 287 629 120 Core . | . . . . . . Treads . | . . . . . . Legs 1098 | 1 276 425 287 109 . Wheels 640 | . . . . 520 120 Hover . | . . . . . . Flight . | . . . . . . Fastest Speed 120 | 120 120 190 190 120 120 Average Speed 160 | 120 168 190 190 132 120 Slowest Speed 260 | 120 260 260 190 190 120 Overloaded Moves . | . . . . . . Propulsion Burnouts . | . . . . . . Robots Hopped . | . . . . . . Cave-ins Triggered . | . . . . . . Exploration Rate (%) 53 | 2 44 82 74 98 19 Regions Visited 5 Branch Regions 3 Pre-discovered Areas . | . . . . . . Known Exits Taken . | . . . . . . Unknown Exits Taken 5 | 1 1 1 1 1 . Scrap Searched 4 | . . 1 . 3 . Spaces Dug . | . . . . . . Terrain Destroyed 150 | . 28 80 . 29 13 Melee . | . . . . . . Projectile . | . . . . . . AOE 150 | . 28 80 . 29 13 Terrain Rammed . | . . . . . . Walls Destroyed . | . . . . . . Machines Disabled . | . . . . . . Actions | -11 -10 -10 -10 -9 -8 --------- Run | Scr Mat Min Exi Min Mat Total 2121 | . 323 449 286 908 155 Wait 273 | . 5 . . 256 12 Move 1733 | . 275 424 286 628 120 Hop . | . . . . . . Pick Up 14 | . 7 2 . 4 1 Fast Attach 12 | . 4 2 . 3 3 Attach 6 | . 1 1 . 2 2 Detach 2 | . 1 . . . 1 Swap 10 | . 3 3 . 3 1 Drop 9 | . . 1 . 8 . Fire 62 | . 27 16 . 4 15 Melee . | . . . . . . Ram . | . . . . . . Kick . | . . . . . . Crush . | . . . . . . Escape Stasis . | . . . . . . Rewire . | . . . . . . Trap . | . . . . . . Miscellaneous . | . . . . . . Route ------- -11/Scrapyard -10/Materials (discovered 2 exits: [*Mat] / [*Min]) -10/Mines (discovered 2 exits: [*Mat] / *Exi) -10/Exiles -9/Mines (discovered 2 exits: [*Mat x2]) -8/Materials History --------- Turn | Location | Event 1 | -11/Scrapyard | Discovered new exit (range 0) 1 | -11/Scrapyard | Entered Materials 156 | -10/Materials | Discovered new exit (range 15) 306 | -10/Materials | Build established: Mutant 307 | -10/Materials | Discovered new exit (range 8) 561 | -10/Materials | Entered Mines 786 | -10/Mines | Lost 3 parts (1p2w) 822 | -10/Mines | Learned Materials interactive machine intel 1135 | -10/Mines | Discovered new exit (range 7) 1253 | -10/Mines | Learned Materials terminal intel 1410 | -10/Mines | Deemed a non-threat by the Exiles lab entrance 1410 | -10/Mines | Discovered new exit (range 6) 1419 | -10/Mines | Entered Exiles 1419 | -10/Exiles | Found Exiles lab abandoned 1948 | -10/Exiles | Discovered new exit (range 10) 1963 | -10/Exiles | Entered Mines 1966 | -9/Mines | Received a Mining Laser from a helpful Derelict 1978 | -9/Mines | Met a Derelict bent on vengeance 1989 | -9/Mines | Assembled infested the area 2502 | -9/Mines | Found a hidden stash of uninstalled traps 2502 | -9/Mines | Discovered new exit (range 9) 2745 | -9/Mines | YI-UF0 nonchalantly dropped a Grenade Launcher on the ground 2793 | -9/Mines | Discovered new exit (range 12) 2828 | -9/Mines | Core integrity fell below 50% 2874 | -9/Mines | A weapon hastily lodged in a ceiling crevice suddenly fell to the ground 3076 | -9/Mines | Entered Materials 3076 | -8/Materials | Evolved 4 slots: Propulsion x2, Utility x2 3077 | -8/Materials | Loaded intel: 19 interactive machine locations 3078 | -8/Materials | Loaded intel: 12 terminal locations 3287 | -8/Materials | Self-destructed Last Messages --------------- 03261_ Targeting Computer melted. 03261_ H-55 Commando destroyed. 03262_ Penetrated by Slug. 03262_ Lgt. Nuclear Core destroyed. 03264_ Acquired 58 matter. 03265_ Penetrated by Slug. 03266_ R-06 Scavenger collects Corrupted Carbon-fiber Leg. 03268_ U-05 Engineer builds a Door. 03271_ R-06 Scavenger collects Corrupted Gauss Rifle. 03271_ Lgt. Nuclear Core fried. 03271_ Targeting Computer fried. 03271_ H-55 Commando destroyed. 03274_ Overheating: Imp. Terrain Scan Processor damaged (-15). 03274_ U-05 Engineer destroyed. 03275_ R-06 Scavenger collects Terrain Scan Processor. 03275_ K-01 Serf collects debris. 03281_ Overheating: Energy bleed (-10). 03283_ K-01 Serf collects debris. 03286_ W-25 Informer sends out distress signal. 03286_ K-01 Serf collects debris. Map ----- +----------------------------------------------------+ | | | | | | | | | | | | | | | | | ?????????????????????????????????????????????????? | | ?????????????????????????????????????????????????? | | ?????????????????????????????????????????????????? | | ?????????????????????????????????????????????????? | | ?????????????????????#?###???????????????????????? | | ?????????????????????# ???????????????????????? | | ?????????????????????# ? ???""??????????????????? | | ?????????????????????? ??Y"??????????????????? | | ??????????????????????]] ??""??????????????????? | | ???????????????????????] ??????????????????????? | | ???????????????????????? ??????????????######### | | ????????????????????????* ??????????????# | | ????????????????????????? ??????????????# | | ????????????????????????##+##????????????# | | ????????????????????????# #########????# """ """ | | ????????????????#########k # #????# """ """ | | ?"""????????????? # #????# """ """ | | ?"T"????????????????????#@ + #????# | | ????????????????????????#% %############## | | ????????????????????????# #?# #### # # #+### | | ??????????????#########?# w#?# | | ??????????????# % ?# #?# | | ??????????????# #= #?# """ | | ????????H?????+ #%[ #?# """ # +### | | ??????????????? """ +[ #?# """ # | | ??????????????? """ # #?# # """ | | ??T?????????????!! """ # !#?# # """"" | | ????????????????!! ?# %### """ # """"" | | ????????????????? ] ?# *k """ # """"" | | ????????????????######??# """% # """ | | ????????????????????????# # | | ????????????????????????######## # | | ???????????????????????????????# """ ######### | | ???????????????????????????????# """ ??????? | | ???????????????????????????????# """ =?????? | | ?????????????????????????????? !!????? | | ????????????????????????????? !!????? | | ???????????????????????????? """ ?!????? | | ????????????????????????????? """% !?????? | | ????????????????????????????? """ ###?????? | | ?????????""?????????????????? ? #???????? | | ????????"G???????????????????? ? ????????? | +----------------------------------------------------+ Best States ------------- Heat Dissipation 31 Energy Generation 14 Energy Capacity 360 Matter Stores 300 Matter Capacity 300 Sight Range 16 Terrain Scan Density 110 Evasion (%) 55 Targeting Accuracy 6 Item Schematics ----------------- None Robot Schematics ------------------ None Fabricated ------------ Nothing Alien Tech Used ----------------- None Achievements -------------- None Challenges ------------ None Game ------ Seed FortressGammaUnit Manual? 0 Play Time 00:16:43 Cumulative 88.0 hours Start 2021.12.25 @ 01:14:09 End 2021.12.25 @ 01:49:54 Sessions 1 Manual Loads 0 Difficulty Rogue Special Mode Winter2021/Sauler Game No. 100 Rogue 78 Adventurer 18 Explorer 4 Win Type - Total 1 Types 0/0/1/0/0/0/0/0/0 Lore% 47 Gallery% 51 Achievement% 44 Wizard Run 0 Options --------- ASCII 1 Keyboard 1 Movement Vi Keybinds 0 Fullscreen 1 Font 18/SmallcapsGlow Map View 83x54 Tactical HUD 1 Map Filters SATURATION(80) Filters SATURATION(80) Steam 1 RUN: 143e8e3a-c590-4091-9dc9-f031e549bbe6